fUSD/lending_fUSD_20250905
["ID","MTS","AMOUNT","RATE_DAILY","PERIOD"]
[383754815,1757109120327,-400.0,0.00036438,10]
[383754816,1757109120340,-878.01,0.00036438,10]
[383754817,1757109120355,-400.0,0.00036438,10]
[383754818,1757109120370,-400.0,0.00036438,10]
[383754819,1757109120384,-400.0,0.00036438,10]
[383754820,1757109120398,-400.0,0.00036438,10]
[383754821,1757109120414,-400.0,0.00036438,10]
[383754822,1757109120427,-1227.44,0.00036438,10]
[383754823,1757109120443,-400.0,0.00036438,10]
[383754824,1757109120457,-400.0,0.00036438,10]
[383754825,1757109120473,-601.8,0.00036438,10]
[383754826,1757109120489,-400.0,0.00036438,10]
[383754827,1757109120504,-400.0,0.00036438,10]
[383754828,1757109120518,-400.0,0.00036438,10]
[383754829,1757109120534,-400.0,0.00036438,10]
[383754830,1757109120549,-400.0,0.00036438,10]
[383754831,1757109120564,-400.0,0.00036438,10]
[383754832,1757109120579,-400.0,0.00036438,10]
[383754833,1757109120594,-400.0,0.00036438,10]
[383754834,1757109120609,-400.0,0.00036438,10]
[383754835,1757109120624,-400.0,0.00036438,10]
[383754836,1757109120641,-400.0,0.00036438,10]
[383754837,1757109120655,-256.01764711,0.00036438,10]
[383754838,1757109120670,-404.89,0.00036438,10]
[383754839,1757109120685,-400.0,0.00036438,10]
[383754840,1757109120701,-400.0,0.00036438,10]
[383754841,1757109120718,-400.0,0.00036438,10]
[383754842,1757109120732,-400.0,0.00036438,10]
[383754843,1757109120748,-414.05,0.00036438,10]
[383754844,1757109120762,-562.13,0.00036438,10]
[383754845,1757109120776,-400.0,0.00036438,10]
[383754846,1757109120790,-400.0,0.00036438,10]
[383754847,1757109120805,-400.0,0.00036438,10]
[383754848,1757109120819,-457.02,0.00036438,10]
[383754849,1757109120833,-400.0,0.00036438,10]
[383754850,1757109120847,-400.0,0.00036438,10]
[383754851,1757109120864,-519.36,0.00036438,10]
[383754852,1757109120881,-400.0,0.00036438,10]
[383754853,1757109121183,-400.0,0.00036438,10]
[383754854,1757109121238,-400.0,0.00036438,10]
[383754855,1757109121264,-400.0,0.00036438,10]
[383754856,1757109121273,-400.0,0.00036438,10]
[383754857,1757109121283,-400.0,0.00036438,10]
[383754858,1757109121293,-400.0,0.00036438,10]
[383754859,1757109121303,-464.19,0.00036438,10]
[383754860,1757109121313,-400.0,0.00036438,10]
[383754861,1757109121324,-400.0,0.00036438,10]
[383754862,1757109121334,-509.57,0.00036438,10]
[383754863,1757109121344,-400.0,0.00036438,10]
[383754864,1757109121354,-400.0,0.00036438,10]
[383754865,1757109121366,-400.0,0.00036438,10]
[383754866,1757109121375,-400.0,0.00036438,10]
[383754867,1757109121385,-400.0,0.00036438,10]
[383754868,1757109121397,-400.0,0.00036438,10]
[383754869,1757109121407,-536.82,0.00036438,10]
[383754870,1757109121416,-400.0,0.00036438,10]
[383754871,1757109121427,-400.0,0.00036438,10]
[383754872,1757109121436,-400.0,0.00036438,10]
[383754873,1757109121446,-400.0,0.00036438,10]
[383754874,1757109121458,-400.0,0.00036438,10]
[383754875,1757109121469,-400.0,0.00036438,7]
[383754876,1757109121479,-400.0,0.00036438,10]
[383754877,1757109121489,-456.25,0.00036438,10]
[383754878,1757109121501,-400.0,0.00036438,10]
[383754879,1757109121510,-400.0,0.00036438,10]
[383754880,1757109121519,-400.0,0.00036438,10]
[383754881,1757109121528,-400.0,0.00036438,10]
[383754882,1757109121538,-250.0557908,0.00036438,10]
[383754883,1757109121550,-400.0,0.00036438,10]
[383754884,1757109121560,-400.0,0.00036438,10]
[383754885,1757109121569,-400.0,0.00036438,10]
[383754886,1757109121579,-400.0,0.00036438,10]
[383754887,1757109121588,-400.0,0.00036438,10]
[383754888,1757109121597,-1325.01,0.00036438,10]
[383754889,1757109121607,-400.0,0.00036438,10]
[383754890,1757109121616,-400.0,0.00036438,10]
[383754891,1757109121627,-662.17,0.00036438,10]
[383754892,1757109121639,-400.0,0.00036438,10]
[383754893,1757109121648,-400.0,0.00036438,10]
[383754894,1757109121658,-400.0,0.00036438,10]
[383754895,1757109121667,-400.0,0.00036438,10]
[383754896,1757109121677,-475.33,0.00036438,10]
[383754897,1757109121688,-400.0,0.00036438,10]
[383754898,1757109121697,-400.0,0.00036438,10]
[383754899,1757109121708,-580.54,0.00036438,10]
[383754900,1757109121718,-468.08,0.00036438,10]
[383754901,1757109121728,-400.0,0.00036438,10]
[383754902,1757109121738,-400.0,0.00036438,10]
[383754903,1757109121749,-400.0,0.00036438,10]
[383754904,1757109121759,-400.0,0.00036438,10]
[383754905,1757109121769,-504.21,0.00036438,10]
[383754906,1757109121778,-400.0,0.00036438,10]
[383754907,1757109121789,-400.0,0.00036438,10]
[383754908,1757109121799,-470.77,0.00036438,10]
[383754909,1757109121811,-400.0,0.00036438,10]
[383754910,1757109121822,-498.61398571,0.00036438,10]
[383754911,1757109121833,-400.0,0.00036438,10]
[383754912,1757109121844,-417.63,0.00036438,10]
[383754913,1757109121853,-400.0,0.00036438,10]
[383754914,1757109121863,-400.0,0.00036438,10]
[383754915,1757109121873,-400.0,0.00036438,10]
[383754916,1757109121884,-400.0,0.00036438,10]
[383754917,1757109121894,-400.0,0.00036438,10]
[383754918,1757109121904,-406.01,0.00036438,10]
[383754919,1757109121914,-400.0,0.00036438,10]
[383754920,1757109121924,-400.0,0.00036438,10]
[383754921,1757109121934,-400.0,0.00036438,10]
[383754922,1757109121944,-400.0,0.00036438,10]
[383754923,1757109121958,-400.0,0.00036438,10]
[383754924,1757109121968,-560.94,0.00036438,10]
[383754925,1757109121978,-400.0,0.00036438,10]
[383754926,1757109121988,-400.0,0.00036438,10]
[383754927,1757109121998,-671.39,0.00036438,10]
[383754928,1757109122007,-400.0,0.00036438,10]
[383754929,1757109122017,-660.54,0.00036438,10]
[383754930,1757109122027,-400.0,0.00036438,10]
[383754931,1757109122036,-400.0,0.00036438,10]
[383754932,1757109122046,-400.0,0.00036438,10]
[383754933,1757109122056,-400.0,0.00036438,10]
[383754934,1757109122065,-400.0,0.00036438,10]
[383754935,1757109122075,-400.0,0.00036438,10]
[383754936,1757109122084,-400.0,0.00036438,10]
[383754937,1757109122093,-400.0,0.00036438,10]
[383754938,1757109122103,-400.0,0.00036438,10]
[383754939,1757109122112,-514.72,0.00036438,10]
[383754940,1757109122122,-505.54,0.00036438,10]
[383754941,1757109122131,-400.0,0.00036438,10]
[383754942,1757109122141,-400.0,0.00036438,2]
[383754943,1757109122150,-400.0,0.00036438,10]
[383754944,1757109122160,-493.62,0.00036438,10]
[383754945,1757109122170,-400.0,0.00036438,10]
[383754946,1757109122179,-556.02,0.00036438,10]
[383754947,1757109122188,-400.0,0.00036438,10]
[383754948,1757109122197,-456.07,0.00036438,10]
[383754949,1757109122206,-400.0,0.00036438,10]
[383754950,1757109122216,-400.0,0.00036438,10]
[383754951,1757109122226,-737.77,0.00036438,10]
[383754952,1757109122235,-1553.38,0.00036438,10]
[383754953,1757109122245,-400.0,0.00036438,10]
[383754954,1757109122255,-400.0,0.00036438,10]
[383754955,1757109122264,-400.0,0.00036438,10]
[383754956,1757109122274,-400.0,0.00036438,10]
[383754957,1757109122284,-400.0,0.00036438,10]
[383754958,1757109122294,-521.95,0.00036438,10]
[383754959,1757109122304,-400.0,0.00036438,10]
[383754960,1757109122313,-418.68,0.00036438,10]
[383754961,1757109122323,-400.0,0.00036438,10]
[383754962,1757109122333,-583.81,0.00036438,10]
[383754963,1757109122344,-400.0,0.00036438,10]
[383754964,1757109122354,-400.0,0.00036438,10]
[383754965,1757109122363,-400.0,0.00036438,10]
[383754966,1757109122373,-400.0,0.00036438,10]
[383754967,1757109122383,-430.27,0.00036438,10]
[383754968,1757109122393,-498.62,0.00036438,10]
[383754969,1757109122402,-400.0,0.00036438,10]
[383754970,1757109122415,-691.22,0.00036438,10]
[383754971,1757109122425,-400.0,0.00036438,10]
[383754972,1757109122434,-400.0,0.00036438,10]
[383754973,1757109122444,-579.68,0.00036438,10]
[383754974,1757109122454,-400.0,0.00036438,10]
[383754975,1757109122465,-400.0,0.00036438,10]
[383754976,1757109122476,-425.45,0.00036438,10]
[383754977,1757109122486,-400.0,0.00036438,10]
[383754978,1757109122496,-400.0,0.00036438,7]
[383754979,1757109122507,-601.12,0.00036438,10]
[383754980,1757109122517,-400.0,0.00036438,10]
[383754981,1757109122527,-400.0,0.00036438,10]
[383754982,1757109122536,-400.0,0.00036438,10]
[383754983,1757109122546,-400.0,0.00036438,10]
[383754984,1757109122555,-400.0,0.00036438,10]
[383754985,1757109122566,-400.0,0.00036438,10]
[383754986,1757109122575,-400.0,0.00036438,10]
[383754987,1757109122584,-401.24,0.00036438,10]
[383754988,1757109122594,-607.93,0.00036438,10]
[383754989,1757109122603,-1060.4,0.00036438,10]
[383754990,1757109122613,-400.0,0.00036438,10]
[383754991,1757109122622,-487.13,0.00036438,10]
[383754992,1757109122632,-565.1,0.00036438,10]
[383754993,1757109122642,-400.0,0.00036438,10]
[383754994,1757109122651,-400.0,0.00036438,10]
[383754995,1757109122662,-643.16,0.00036438,10]
[383754996,1757109122672,-599.17,0.00036438,10]
[383754997,1757109122682,-408.11,0.00036438,10]
[383754998,1757109122691,-400.0,0.00036438,10]
[383754999,1757109122701,-400.0,0.00036438,10]
[383755000,1757109122714,-400.0,0.00036438,10]
[383755001,1757109122724,-400.0,0.00036438,10]
[383755002,1757109122734,-400.0,0.00036438,10]
[383755003,1757109122743,-567.22,0.00036438,10]
[383755004,1757109122752,-400.0,0.00036438,10]
[383755005,1757109122762,-400.0,0.00036438,10]
[383755006,1757109122773,-401.74162908,0.00036438,10]
[383755007,1757109122782,-400.0,0.00036438,10]
[383755008,1757109122792,-400.0,0.00036438,10]
[383755009,1757109122803,-587.89,0.00036438,10]
[383755010,1757109122812,-400.0,0.00036438,10]
[383755011,1757109122822,-400.0,0.00036438,10]
[383755012,1757109122832,-400.0,0.00036438,10]
[383755013,1757109122842,-649.4,0.00036438,10]
[383755014,1757109122854,-400.0,0.00036438,10]
[383755015,1757109122865,-540.45,0.00036438,10]
[383755016,1757109122875,-444.03,0.00036438,10]
[383755017,1757109122885,-400.0,0.00036438,10]
[383755018,1757109122896,-521.91,0.00036438,10]
[383755019,1757109122905,-400.0,0.00036438,10]
[383755020,1757109122915,-577.54,0.00036438,10]
[383755021,1757109122925,-400.0,0.00036438,10]
[383755022,1757109122935,-400.0,0.00036438,10]
[383755023,1757109122944,-455.87,0.00036438,10]
[383755024,1757109122955,-400.0,0.00036438,10]
[383755025,1757109122967,-401.69680573,0.00036438,10]
[383755026,1757109122978,-1000.0,0.00036438,10]
[383755027,1757109122990,-400.0,0.00036438,10]
[383755028,1757109123000,-606.17,0.00036438,10]
[383755029,1757109123009,-400.0,0.00036438,10]
[383755030,1757109123019,-402.01111548,0.00036438,10]
[383755031,1757109123029,-400.0,0.00036438,10]
[383755032,1757109123039,-400.0,0.00036438,10]
[383755033,1757109123048,-400.0,0.00036438,10]
[383755034,1757109123058,-552.86,0.00036438,10]
[383755035,1757109123068,-400.0,0.00036438,10]
[383755036,1757109123078,-400.0,0.00036438,10]
[383755037,1757109123088,-738.19,0.00036438,10]
[383755038,1757109123097,-400.0,0.00036438,10]
[383755039,1757109123107,-400.0,0.00036438,10]
[383755040,1757109123116,-400.0,0.00036438,10]
[383755041,1757109123126,-400.0,0.00036438,10]
[383755042,1757109123136,-400.0,0.00036438,10]
[383755043,1757109123146,-400.0,0.00036438,10]
[383755044,1757109123157,-400.0,0.00036438,10]
[383755045,1757109123166,-400.0,0.00036438,10]
[383755046,1757109123176,-400.0,0.00036438,10]
[383755047,1757109123186,-400.0,0.00036438,10]
[383755048,1757109123196,-400.0,0.00036438,10]
[383755049,1757109123206,-485.13,0.00036438,10]
[383755050,1757109123215,-400.0,0.00036438,10]
[383755051,1757109123225,-400.0,0.00036438,10]
[383755052,1757109123235,-400.0,0.00036438,10]
[383755053,1757109123244,-400.0,0.00036438,10]
[383755054,1757109123254,-400.0,0.00036438,10]
[383755055,1757109123263,-497.92,0.00036438,10]
[383755056,1757109123273,-534.68,0.00036438,10]
[383755057,1757109123283,-400.0,0.00036438,10]
[383755058,1757109123292,-400.0,0.00036438,10]
[383755059,1757109123302,-400.0,0.00036438,10]
[383755060,1757109123312,-434.21,0.00036438,10]
[383755061,1757109123322,-400.0,0.00036438,10]
[383755062,1757109123332,-400.0,0.00036438,10]
[383755063,1757109123341,-400.0,0.00036438,10]
[383755064,1757109123351,-400.0,0.00036438,10]
[383755065,1757109123361,-400.0,0.00036438,10]
[383755066,1757109123370,-400.0,0.00036438,10]
[383755067,1757109123380,-400.0,0.00036438,10]
[383755068,1757109123390,-400.0,0.00036438,10]
[383755069,1757109123399,-400.0,0.00036438,10]
[383755070,1757109123410,-400.0,0.00036438,10]
[383755071,1757109123420,-400.0,0.00036438,10]
[383755072,1757109123429,-400.0,0.00036438,10]
[383755073,1757109123439,-400.0,0.00036438,10]
[383755074,1757109123449,-400.0,0.00036438,10]
[383755075,1757109123459,-400.0,0.00036438,10]
[383755076,1757109123469,-400.0,0.00036438,10]
[383755077,1757109123478,-400.0,0.00036438,10]
[383755078,1757109123488,-400.0,0.00036438,10]
[383755079,1757109123498,-400.0,0.00036438,10]
[383755080,1757109123508,-400.0,0.00036438,10]
[383755081,1757109123518,-697.19,0.00036438,10]
[383755082,1757109123528,-400.0,0.00036438,10]
[383755083,1757109123539,-400.0,0.00036438,10]
[383755084,1757109123548,-400.0,0.00036438,10]
[383755085,1757109123558,-400.0,0.00036438,10]
[383755086,1757109123567,-400.0,0.00036438,10]
[383755087,1757109123577,-400.0,0.00036438,10]
[383755088,1757109123587,-588.33,0.00036438,10]
[383755089,1757109123598,-400.0,0.00036438,10]
[383755090,1757109123608,-400.0,0.00036438,10]
[383755091,1757109123618,-467.87,0.00036438,10]
[383755092,1757109123628,-400.0,0.00036438,10]
[383755093,1757109123639,-400.0,0.00036438,10]
[383755094,1757109123648,-400.0,0.00036438,10]
[383755095,1757109123659,-400.0,0.00036438,10]
[383755096,1757109123669,-400.0,0.00036438,10]
[383755097,1757109123679,-400.0,0.00036438,10]
[383755098,1757109123689,-400.0,0.00036438,10]
[383755099,1757109123699,-400.0,0.00036438,10]
[383755100,1757109123710,-400.0,0.00036438,10]
[383755101,1757109123720,-400.0,0.00036438,10]
[383755102,1757109123730,-400.0,0.00036438,10]
[383755103,1757109123741,-400.0,0.00036438,10]
[383755104,1757109123751,-400.0,0.00036438,10]
[383755105,1757109123762,-400.0,0.00036438,10]
[383755106,1757109123772,-400.0,0.00036438,10]
[383755107,1757109123782,-400.0,0.00036438,10]
[383755108,1757109123792,-434.97,0.00036438,10]
[383755109,1757109123803,-400.0,0.00036438,10]
[383755110,1757109123813,-400.0,0.00036438,10]
[383755111,1757109123823,-400.0,0.00036438,10]
[383755112,1757109123833,-400.0,0.00036438,10]
[383755113,1757109123843,-400.0,0.00036438,10]
[383755114,1757109123853,-547.22,0.00036438,10]
[383755115,1757109123863,-400.0,0.00036438,10]
[383755116,1757109123872,-9387.3,0.00036438,10]
[383755117,1757109123882,-400.0,0.00036438,10]
[383755118,1757109123893,-438.16,0.00036438,10]
[383755119,1757109123903,-400.44,0.00036438,10]
[383755120,1757109123913,-400.0,0.00036438,10]
[383755121,1757109123923,-467.62,0.00036438,10]
[383755122,1757109123933,-411.46907135,0.00036438,10]
[383755123,1757109123943,-506.66,0.00036438,10]
[383755124,1757109123953,-400.0,0.00036438,10]
[383755125,1757109123966,-400.0,0.00036438,10]
[383755126,1757109123976,-400.0,0.00036438,10]
[383755127,1757109123985,-400.0,0.00036438,10]
[383755128,1757109123995,-400.0,0.00036438,10]
[383755129,1757109124004,-422.62,0.00036438,10]
[383755130,1757109124014,-410.86620874,0.00036438,10]
[383755131,1757109124023,-406.5,0.00036438,10]
[383755132,1757109124034,-400.0,0.00036438,10]
[383755133,1757109124044,-400.0,0.00036438,10]
[383755134,1757109124054,-400.0,0.00036438,10]
[383755135,1757109124065,-400.0,0.00036438,10]
[383755136,1757109124075,-773.54,0.00036438,10]
[383755137,1757109124085,-765.31,0.00036438,10]
[383755138,1757109124096,-401.2,0.00036438,10]
[383755139,1757109124105,-400.0,0.00036438,10]
[383755140,1757109124115,-400.0,0.00036438,10]
[383755141,1757109124125,-400.0,0.00036438,10]
[383755142,1757109124135,-417.09,0.00036438,10]
[383755143,1757109124145,-441.78,0.00036438,10]
[383755144,1757109124155,-310.79962043,0.00036438,10]
[383755145,1757109124166,-400.0,0.00036438,10]
[383755146,1757109124175,-400.0,0.00036438,10]
[383755147,1757109124186,-400.0,0.00036438,10]
[383755148,1757109124196,-441.15,0.00036438,10]
[383755149,1757109124206,-400.0,0.00036438,10]
[383755150,1757109124217,-400.0,0.00036438,10]
[383755151,1757109124227,-400.0,0.00036438,10]
[383755152,1757109124236,-400.0,0.00036438,10]
[383755153,1757109124246,-553.83,0.00036438,10]
[383755154,1757109124255,-546.26,0.00036438,10]
[383755155,1757109124264,-400.0,0.00036438,10]
[383755156,1757109124274,-400.0,0.00036438,10]
[383755157,1757109124283,-400.0,0.00036438,10]
[383755158,1757109124292,-400.0,0.00036438,10]
[383755159,1757109124302,-400.0,0.00036438,10]
[383755160,1757109124311,-785.59,0.00036438,10]
[383755161,1757109124320,-437.91,0.00036438,10]
[383755162,1757109124329,-447.37,0.00036438,10]
[383755163,1757109124339,-406.23600095,0.00036438,10]
[383755164,1757109124349,-400.0,0.00036438,10]
[383755165,1757109124359,-400.0,0.00036438,10]
[383755166,1757109124371,-632.37,0.00036438,10]
[383755167,1757109124381,-400.0,0.00036438,10]
[383755168,1757109124392,-400.0,0.00036438,10]
[383755169,1757109124404,-400.0,0.00036438,10]
[383755170,1757109124414,-414.4,0.00036438,10]
[383755171,1757109124423,-400.0,0.00036438,10]
[383755172,1757109124434,-569.2,0.00036438,10]
[383755173,1757109124445,-981.06,0.00036438,10]
[383755174,1757109124455,-400.0,0.00036438,10]
[383755175,1757109124464,-401.43020533,0.00036438,10]
[383755176,1757109124473,-400.0,0.00036438,10]
[383755177,1757109124483,-400.0,0.00036438,10]
[383755178,1757109124494,-400.0,0.00036438,10]
[383755179,1757109124504,-400.0,0.00036438,10]
[383755180,1757109124514,-400.0,0.00036438,10]
[383755181,1757109124524,-400.0,0.00036438,10]
[383755182,1757109124534,-400.0,0.00036438,10]
[383755183,1757109124544,-425.97148044,0.00036438,10]
[383755184,1757109124554,-400.0,0.00036438,10]
[383755185,1757109124564,-400.0,0.00036438,10]
[383755186,1757109124574,-400.0,0.00036438,10]
[383755187,1757109124825,-400.0,0.00036438,10]
[383755188,1757109124849,-400.0,0.00036438,10]
[383755189,1757109124860,-420.85,0.00036438,10]
[383755190,1757109124871,-400.0,0.00036438,10]
[383755191,1757109124881,-542.91,0.00036438,10]
[383755192,1757109124892,-400.0,0.00036438,10]
[383755193,1757109124902,-1444.34,0.00036438,10]
[383755194,1757109124913,-400.0,0.00036438,10]
[383755195,1757109124923,-414.08,0.00036438,10]
[383755196,1757109124933,-400.0,0.00036438,10]
[383755197,1757109124943,-400.0,0.00036438,10]
[383755198,1757109124953,-400.0,0.00036438,10]
[383755199,1757109124967,-2516.87,0.00036438,10]
[383755200,1757109124976,-404.14609762,0.00036438,10]
[383755201,1757109124986,-400.0,0.00036438,10]
[383755202,1757109124996,-441.96,0.00036438,10]
[383755203,1757109125007,-498.12,0.00036438,10]
[383755204,1757109125017,-447.68,0.00036438,10]
[383755205,1757109125027,-400.0,0.00036438,10]
[383755206,1757109125038,-400.0,0.00036438,10]
[383755207,1757109125048,-487.97,0.00036438,10]
[383755208,1757109125058,-400.0,0.00036438,10]
[383755209,1757109125068,-2345.08,0.00036438,10]
[383755210,1757109125078,-586.94,0.00036438,10]
[383755211,1757109125088,-626.89,0.00036438,10]
[383755212,1757109125098,-400.0,0.00036438,10]
[383755213,1757109125108,-401.99369285,0.00036438,10]
[383755214,1757109125118,-400.0,0.00036438,10]
[383755215,1757109125128,-400.0,0.00036438,10]
[383755216,1757109125138,-400.0,0.00036438,10]
[383755217,1757109125148,-400.0,0.00036438,10]
[383755218,1757109125159,-400.0,0.00036438,10]
[383755219,1757109125169,-400.0,0.00036438,10]
[383755220,1757109125179,-400.0,0.00036438,10]
[383755221,1757109125190,-448.78,0.00036438,10]
[383755222,1757109125200,-400.0,0.00036438,10]
[383755223,1757109125210,-400.0,0.00036438,10]
[383755224,1757109125220,-400.0,0.00036438,10]
[383755225,1757109125230,-400.0,0.00036438,10]
[383755226,1757109125240,-475.22,0.00036438,10]
[383755227,1757109125249,-562.67,0.00036438,10]
[383755228,1757109125259,-576.12,0.00036438,10]
[383755229,1757109125269,-546.92,0.00036438,10]
[383755230,1757109125279,-400.0,0.00036438,10]
[383755231,1757109125289,-459.73,0.00036438,10]
[383755232,1757109125299,-400.0,0.00036438,10]
[383755233,1757109125309,-400.0,0.00036438,10]
[383755234,1757109125318,-400.0,0.00036438,10]
[383755235,1757109125328,-400.0,0.00036438,10]
[383755236,1757109125339,-400.0,0.00036438,10]
[383755237,1757109125349,-400.0,0.00036438,10]
[383755238,1757109125360,-400.0,0.00036438,2]
[383755239,1757109125371,-543.53,0.00036438,10]
[383755240,1757109125381,-400.0,0.00036438,10]
[383755241,1757109125391,-495.5,0.00036438,10]
[383755242,1757109125400,-400.0,0.00036438,10]
[383755243,1757109125411,-551.73,0.00036438,10]
[383755244,1757109125421,-584.47,0.00036438,10]
[383755245,1757109125431,-400.0,0.00036438,10]
[383755246,1757109125441,-400.0,0.00036438,10]
[383755247,1757109125451,-400.0,0.00036438,10]
[383755248,1757109125461,-445.12,0.00036438,10]
[383755249,1757109125471,-400.0,0.00036438,10]
[383755250,1757109125481,-400.0,0.00036438,10]
[383755251,1757109125491,-400.0,0.00036438,10]
[383755252,1757109125501,-618.31,0.00036438,10]
[383755253,1757109125511,-400.0,0.00036438,10]
[383755254,1757109125522,-582.55,0.00036438,10]
[383755255,1757109125532,-502.39,0.00036438,10]
[383755256,1757109125542,-2141.03,0.00036438,10]
[383755257,1757109125552,-400.0,0.00036438,10]
[383755258,1757109125562,-400.0,0.00036438,10]
[383755259,1757109125572,-400.0,0.00036438,10]
[383755260,1757109125582,-400.0,0.00036438,10]
[383755261,1757109125592,-492.2,0.00036438,10]
[383755262,1757109125602,-400.0,0.00036438,10]
[383755263,1757109125612,-884.72,0.00036438,10]
[383755264,1757109125623,-494.68,0.00036438,10]
[383755265,1757109125632,-400.0,0.00036438,10]
[383755266,1757109125643,-400.0,0.00036438,10]
[383755267,1757109125653,-590.75,0.00036438,10]
[383755268,1757109125664,-434.34,0.00036438,10]
[383755269,1757109125674,-400.0,0.00036438,10]
[383755270,1757109125683,-400.0,0.00036438,10]
[383755271,1757109125693,-400.0,0.00036438,10]
[383755272,1757109125703,-400.0,0.00036438,10]
[383755273,1757109125722,-400.0,0.00036438,10]
[383755274,1757109125732,-409.59547173,0.00036438,10]
[383755275,1757109125742,-400.0,0.00036438,10]
[383755276,1757109125752,-423.04,0.00036438,10]
[383755277,1757109125763,-400.0,0.00036438,10]
[383755278,1757109125772,-474.82,0.00036438,10]
[383755279,1757109125782,-400.0,0.00036438,10]
[383755280,1757109125791,-400.0,0.00036438,10]
[383755281,1757109125801,-400.0,0.00036438,10]
[383755282,1757109125811,-400.0,0.00036438,10]
[383755283,1757109125820,-400.0,0.00036438,10]
[383755284,1757109125830,-1292.27,0.00036438,10]
[383755285,1757109125839,-400.0,0.00036438,10]
[383755286,1757109125849,-400.0,0.00036438,10]
[383755287,1757109125859,-400.0,0.00036438,10]
[383755288,1757109125869,-400.0,0.00036438,10]
[383755289,1757109125879,-2757.36,0.00036438,10]
[383755290,1757109125890,-400.0,0.00036438,10]
[383755291,1757109125901,-400.0,0.00036438,10]
[383755292,1757109125915,-400.0,0.00036438,10]
[383755293,1757109125927,-400.0,0.00036438,10]
[383755294,1757109125938,-400.0,0.00036438,10]
[383755295,1757109125949,-400.0,0.00036438,10]
[383755296,1757109125964,-422.6,0.00036438,10]
[383755297,1757109125975,-1028.14,0.00036438,10]
[383755298,1757109125986,-400.0,0.00036438,10]
[383755299,1757109125996,-404.16,0.00036438,10]
[383755300,1757109126007,-400.0,0.00036438,10]
[383755301,1757109126017,-511.03637564,0.00036438,10]
[383755302,1757109126027,-400.0,0.00036438,10]
[383755303,1757109126038,-701.4,0.00036438,10]
[383755304,1757109126049,-696.57,0.00036438,10]
[383755305,1757109126059,-300.0,0.00036438,10]
[383755306,1757109126069,-380.04630936,0.00036438,10]
[383755307,1757109126079,-400.0,0.00036438,10]
[383755308,1757109126088,-766.81,0.00036438,10]
[383755309,1757109126098,-400.0,0.00036438,10]
[383755310,1757109126108,-400.0,0.00036438,10]
[383755311,1757109126118,-400.0,0.00036438,10]
[383755312,1757109126128,-400.0,0.00036438,10]
[383755313,1757109126138,-438.53,0.00036438,10]
[383755314,1757109126147,-400.0,0.00036438,10]